fUST/lending_fUST_20241027
["ID","MTS","AMOUNT","RATE_DAILY","PERIOD"]
[340889440,1730026247077,-500.0,0.00027397,7]
[340889441,1730026247086,-501.02079588,0.00027397,7]
[340889442,1730026247097,-500.0,0.00027397,30]
[340889443,1730026247106,-505.78298386,0.00027397,30]
[340889444,1730026247116,-500.0,0.00027397,30]
[340889445,1730026247125,-500.0,0.00027397,30]
[340889446,1730026247134,-500.0,0.00027397,30]
[340889447,1730026247143,-500.0,0.00027397,30]
[340889448,1730026247153,-500.0,0.00027397,30]
[340889449,1730026247162,-1016.54,0.00027397,30]
[340889450,1730026247171,-505.37412891,0.00027397,30]
[340889451,1730026247180,-502.59530346,0.00027397,30]
[340889452,1730026247189,-503.2577234,0.00027397,30]
[340889453,1730026247198,-151.0,0.00027397,7]
[340889454,1730026247208,-151.0,0.00027397,7]
[340889455,1730026247218,-151.0,0.00027397,7]
[340889456,1730026247227,-939.49,0.00027397,30]
[340889457,1730026247237,-501.9210496,0.00027397,30]
[340889458,1730026247246,-151.0,0.00027397,7]
[340889459,1730026247256,-511.68122764,0.00027397,30]
[340889460,1730026247266,-151.0,0.00027397,7]
[340889461,1730026247275,-151.0,0.00027397,7]
[340889462,1730026247284,-151.0,0.00027397,7]
[340889463,1730026247293,-156.014671,0.00027397,7]
[340889464,1730026247302,-544.58,0.00027397,30]
[340889465,1730026247311,-500.0,0.00027397,30]
[340889466,1730026247320,-500.0,0.00027397,30]
[340889467,1730026247330,-500.0,0.00027397,30]
[340889468,1730026247339,-972.48,0.00027397,30]
[340889469,1730026247348,-1758.65,0.00027397,30]
[340889470,1730026247357,-500.0,0.00027397,30]
[340889471,1730026247368,-500.0,0.00027397,30]
[340889472,1730026247376,-500.0,0.00027397,30]
[340889473,1730026247386,-500.0,0.00027397,30]
[340889474,1730026247395,-500.0,0.00027397,30]
[340889475,1730026247404,-410.95290275,0.00027397,30]
[340889476,1730026247415,-500.0,0.00027397,30]
[340889477,1730026247426,-500.0,0.00027397,30]
[340889478,1730026247437,-504.0487273,0.00027397,30]
[340889479,1730026247447,-500.0,0.00027397,30]
[340889480,1730026247457,-500.0,0.00027397,30]
[340889481,1730026247467,-500.0,0.00027397,30]
[340889482,1730026247476,-500.0,0.00027397,30]
[340889483,1730026247488,-500.0,0.00027397,30]
[340889484,1730026247499,-500.0,0.00027397,30]
[340889485,1730026247509,-151.0,0.00027397,7]
[340889486,1730026247520,-151.0,0.00027397,7]
[340889487,1730026247531,-151.0,0.00027397,7]
[340889488,1730026247543,-151.0,0.00027397,7]
[340889489,1730026247552,-500.0,0.00027397,30]
[340889490,1730026247562,-500.0,0.00027397,30]
[340889491,1730026247572,-610.92718294,0.00027397,30]
[340889492,1730026247582,-500.0,0.00027397,30]
[340889493,1730026247592,-749.53,0.00027397,30]
[340889494,1730026247602,-500.0,0.00027397,30]
[340889495,1730026247613,-500.0,0.00027397,30]
[340889496,1730026247623,-500.0,0.00027397,30]
[340889497,1730026247633,-500.0,0.00027397,30]
[340889498,1730026247642,-500.0,0.00027397,30]
[340889499,1730026247653,-500.0,0.00027397,30]
[340889500,1730026247663,-500.0,0.00027397,30]
[340889501,1730026247672,-500.0,0.00027397,30]
[340889502,1730026247682,-500.0,0.00027397,30]
[340889503,1730026247693,-500.0,0.00027397,30]
[340889504,1730026247704,-500.0,0.00027397,30]
[340889505,1730026247715,-500.0,0.00027397,30]
[340889506,1730026247728,-460.87346296,0.00027397,30]
[340889507,1730026247738,-500.0,0.00027397,30]
[340889508,1730026247748,-502.04514661,0.00027397,30]
[340889509,1730026247757,-500.0,0.00027397,30]
[340889510,1730026247767,-500.0,0.00027397,30]
[340889511,1730026247777,-500.0,0.00027397,30]
[340889512,1730026247787,-500.0,0.00027397,30]
[340889513,1730026247796,-500.0,0.00027397,30]
[340889514,1730026247805,-937.23,0.00027397,30]
[340889515,1730026247815,-2111.19,0.00027397,30]
[340889516,1730026247824,-666.39,0.00027397,30]
[340889517,1730026247834,-500.0,0.00027397,30]
[340889518,1730026247843,-500.0,0.00027397,30]
[340889519,1730026247854,-151.0,0.00027397,7]
[340889520,1730026247864,-151.0,0.00027397,7]
[340889521,1730026247874,-495.77439313,0.00027397,30]
[340889522,1730026247884,-151.0,0.00027397,7]
[340889523,1730026247894,-151.0,0.00027397,7]
[340889524,1730026247904,-500.0,0.00027397,30]
[340889525,1730026247916,-500.0,0.00027397,30]
[340889526,1730026247928,-1762.89,0.00027397,30]
[340889527,1730026247940,-500.0,0.00027397,30]
[340889528,1730026247951,-885.25,0.00027397,30]
[340889529,1730026247961,-2853.32,0.00027397,30]
[340889530,1730026247972,-500.0,0.00027397,30]
[340889531,1730026247982,-500.0,0.00027397,30]
[340889532,1730026247993,-500.0,0.00027397,30]
[340889533,1730026248003,-500.0,0.00027397,30]
[340889534,1730026248013,-2159.8,0.00027397,30]
[340889535,1730026248022,-500.0,0.00027397,30]
[340889536,1730026248032,-515.46101144,0.00027397,30]
[340889537,1730026248042,-500.0,0.00027397,30]
[340889538,1730026248051,-1286.03,0.00027397,30]
[340889539,1730026248061,-817.82,0.00027397,30]
[340889540,1730026248070,-511.6,0.00027397,30]
[340889541,1730026248079,-508.72443311,0.00027397,30]
[340889542,1730026248088,-500.0,0.00027397,30]
[340889543,1730026248098,-501.12235455,0.00027397,30]
[340889544,1730026248107,-500.0,0.00027397,30]
[340889545,1730026248116,-500.0,0.00027397,30]
[340889546,1730026248125,-722.29,0.00027397,30]
[340889547,1730026248135,-507.88492507,0.00027397,30]
[340889548,1730026248144,-500.0,0.00027397,30]
[340889549,1730026248153,-500.0,0.00027397,30]
[340889550,1730026248163,-500.0,0.00027397,30]
[340889551,1730026248172,-151.0,0.00027397,7]
[340889552,1730026248182,-151.0,0.00027397,7]
[340889553,1730026248191,-151.0,0.00027397,7]
[340889554,1730026248200,-503.12612316,0.00027397,30]
[340889555,1730026248210,-151.0,0.00027397,7]
[340889556,1730026248221,-502.41605936,0.00027397,30]
[340889557,1730026248232,-188.0,0.00027397,2]
[340889558,1730026248243,-500.0,0.00027397,30]
[340889559,1730026248253,-151.0,0.00027397,7]
[340889560,1730026248262,-240.494494,0.00027397,7]
[340889561,1730026248271,-500.0,0.00027397,30]
[340889562,1730026248282,-502.13604239,0.00027397,30]
[340889563,1730026248292,-500.0,0.00027397,30]
[340889564,1730026248303,-899.03,0.00027397,30]
[340889565,1730026248313,-500.99901229,0.00027397,30]
[340889566,1730026248322,-243.08770846,0.00027397,30]
[340889567,1730026248332,-500.0,0.00027397,30]
[340889568,1730026248342,-500.0,0.00027397,20]
[340889569,1730026248351,-500.0,0.00027397,30]
[340889570,1730026248361,-539.73466181,0.00027397,20]
[340889571,1730026248371,-500.0,0.00027397,30]
[340889572,1730026248381,-500.0,0.00027397,30]
[340889573,1730026248390,-500.0,0.00027397,30]
[340889574,1730026248400,-500.0,0.00027397,30]
[340889575,1730026248410,-858.24,0.00027397,30]
[340889576,1730026248419,-500.0,0.00027397,30]
[340889577,1730026248428,-507.69,0.00027397,30]
[340889578,1730026248437,-500.0,0.00027397,30]
[340889579,1730026248448,-500.0,0.00027397,30]
[340889580,1730026248457,-500.0,0.00027397,30]
[340889581,1730026248468,-856.69,0.00027397,30]
[340889582,1730026248478,-500.0,0.00027397,30]
[340889583,1730026248489,-500.0,0.00027397,30]
[340889584,1730026248498,-500.0,0.00027397,30]
[340889585,1730026248508,-500.0,0.00027397,30]
[340889586,1730026248518,-500.0,0.00027397,30]
[340889587,1730026248528,-500.0,0.00027397,30]
[340889588,1730026248539,-500.0,0.00027397,30]
[340889589,1730026248549,-500.0,0.00027397,30]
[340889590,1730026248560,-500.0,0.00027397,30]
[340889591,1730026248570,-500.0,0.00027397,30]
[340889592,1730026248581,-500.0,0.00027397,30]
[340889593,1730026248591,-500.0,0.00027397,30]
[340889594,1730026248601,-500.0,0.00027397,30]
[340889595,1730026248611,-500.0,0.00027397,30]
[340889596,1730026248621,-500.0,0.00027397,30]
[340889597,1730026248633,-500.0,0.00027397,30]
[340889598,1730026248643,-494.4307694,0.00027397,30]
[340889599,1730026248653,-1097.5,0.00027397,30]
[340889600,1730026248662,-151.0,0.00027397,7]
[340889601,1730026248672,-151.0,0.00027397,7]
[340889602,1730026248681,-1851.56,0.00027397,30]
[340889603,1730026248691,-500.0,0.00027397,30]
[340889604,1730026248700,-151.0,0.00027397,7]
[340889605,1730026248709,-151.0,0.00027397,7]
[340889606,1730026248720,-1705.08,0.00027397,30]
[340889607,1730026248730,-500.0,0.00027397,30]
[340889608,1730026248739,-966.48,0.00027397,30]
[340889609,1730026248748,-858.85,0.00027397,30]
[340889610,1730026248758,-805.41,0.00027397,30]
[340889611,1730026248767,-500.0,0.00027397,30]
[340889612,1730026248776,-500.0,0.00027397,30]
[340889613,1730026248786,-500.0,0.00027397,30]
[340889614,1730026248795,-581.23,0.00027397,30]
[340889615,1730026248804,-500.0,0.00027397,30]
[340889616,1730026248813,-500.0,0.00027397,30]
[340889617,1730026248822,-926.57,0.00027397,30]
[340889618,1730026248832,-500.0,0.00027397,30]
[340889619,1730026248842,-500.0,0.00027397,30]
[340889620,1730026248852,-508.99332627,0.00027397,30]
[340889621,1730026248861,-617.16,0.00027397,30]
[340889622,1730026248871,-500.0,0.00027397,30]
[340889623,1730026248880,-500.0,0.00027397,30]
[340889624,1730026248890,-500.0,0.00027397,30]
[340889625,1730026248900,-500.0,0.00027397,30]
[340889626,1730026248909,-202.75446268,0.00027397,30]
[340889627,1730026248919,-1124.85,0.00027397,30]
[340889628,1730026248928,-2373.538828,0.00027397,7]
[340889629,1730026248938,-2373.538828,0.00027397,7]
[340889630,1730026248947,-500.0,0.00027397,30]
[340889631,1730026248956,-2373.538828,0.00027397,7]
[340889632,1730026249109,-500.0,0.00027397,30]
[340889633,1730026249119,-2373.538828,0.00027397,7]
[340889634,1730026249128,-2373.538828,0.00027397,7]
[340889635,1730026249137,-500.0,0.00027397,30]
[340889636,1730026249146,-2373.538823,0.00027397,7]
[340889637,1730026249157,-928.16,0.00027397,30]
[340889638,1730026249166,-500.0,0.00027397,30]
[340889639,1730026249175,-500.0,0.00027397,30]
[340889640,1730026249186,-2192.17,0.00027397,30]
[340889641,1730026249196,-500.0,0.00027397,30]
[340889642,1730026249205,-500.0,0.00027397,30]
[340889643,1730026249214,-500.0,0.00027397,30]
[340889644,1730026249223,-1011.95,0.00027397,30]
[340889645,1730026249233,-500.0,0.00027397,30]
[340889646,1730026249242,-500.0,0.00027397,30]
[340889647,1730026249253,-268.22137891,0.00027397,30]
[340889648,1730026249263,-500.0,0.00027397,30]
[340889649,1730026249272,-500.0,0.00027397,30]
[340889650,1730026249281,-500.0,0.00027397,30]
[340889651,1730026249290,-812.35,0.00027397,30]
[340889652,1730026249300,-500.0,0.00027397,30]
[340889653,1730026249311,-500.0,0.00027397,30]
[340889654,1730026249320,-907.42,0.00027397,30]
[340889655,1730026249330,-500.0,0.00027397,30]
[340889656,1730026249340,-708.92,0.00027397,30]
[340889657,1730026249350,-500.0,0.00027397,30]
[340889658,1730026249360,-500.0,0.00027397,30]
[340889659,1730026249370,-500.0,0.00027397,30]
[340889660,1730026249380,-2005.24,0.00027397,30]
[340889661,1730026249391,-500.0,0.00027397,30]
[340889662,1730026249400,-500.0,0.00027397,30]
[340889663,1730026249412,-710.15,0.00027397,30]
[340889664,1730026249423,-500.0,0.00027397,30]
[340889665,1730026249432,-545.43,0.00027397,30]
[340889666,1730026249442,-500.0,0.00027397,30]
[340889667,1730026249451,-500.0,0.00027397,30]
[340889668,1730026249461,-504.02575962,0.00027397,30]
[340889669,1730026249471,-500.0,0.00027397,30]
[340889670,1730026249482,-500.0,0.00027397,30]
[340889671,1730026249492,-1212.4,0.00027397,30]
[340889672,1730026249502,-500.0,0.00027397,30]
[340889673,1730026249513,-1843.22,0.00027397,30]
[340889674,1730026249524,-500.0,0.00027397,30]
[340889675,1730026249535,-500.0,0.00027397,30]
[340889676,1730026249545,-787.76,0.00027397,30]
[340889677,1730026249555,-500.0,0.00027397,30]
[340889678,1730026249565,-500.0,0.00027397,30]
[340889679,1730026249576,-500.0,0.00027397,30]
[340889680,1730026249587,-500.0,0.00027397,30]
[340889681,1730026249596,-500.0,0.00027397,30]
[340889682,1730026249607,-500.0,0.00027397,30]
[340889683,1730026249617,-1049.86,0.00027397,30]
[340889684,1730026249628,-1040.77,0.00027397,30]
[340889685,1730026249639,-270.032407,0.00027397,7]
[340889686,1730026249648,-270.032407,0.00027397,7]
[340889687,1730026249659,-500.0,0.00027397,30]
[340889688,1730026249670,-500.0,0.00027397,30]
[340889689,1730026249679,-1117.96,0.00027397,14]
[340889690,1730026249688,-270.032407,0.00027397,7]
[340889691,1730026249698,-501.016309,0.00027397,7]
[340889692,1730026249709,-270.032407,0.00027397,7]
[340889693,1730026249719,-501.016309,0.00027397,7]
[340889694,1730026249729,-270.032407,0.00027397,7]
[340889695,1730026249740,-270.032399,0.00027397,7]
[340889696,1730026249751,-197.50683916,0.00027397,30]
[340889697,1730026249762,-1173.81,0.00027397,30]
[340889698,1730026249773,-1000.0,0.00027397,30]
[340889699,1730026249784,-501.016309,0.00027397,7]
[340889700,1730026249796,-501.016305,0.00027397,7]
[340889701,1730026249806,-151.0,0.00027397,7]
[340889702,1730026249816,-500.0,0.00027397,30]
[340889703,1730026249826,-151.0,0.00027397,7]
[340889704,1730026249835,-1210.86,0.00027397,30]
[340889705,1730026249844,-500.0,0.00027397,30]
[340889706,1730026249854,-500.0,0.00027397,30]
[340889707,1730026249863,-500.0,0.00027397,30]
[340889708,1730026249874,-551.30531188,0.00027397,30]
[340889709,1730026249884,-500.0,0.00027397,30]
[340889710,1730026249894,-500.0,0.00027397,30]
[340889711,1730026249905,-200.0,0.00027397,30]
[340889712,1730026249915,-500.0,0.00027397,30]
[340889713,1730026249924,-1129.76,0.00027397,30]
[340889714,1730026249934,-500.0,0.00027397,30]
[340889715,1730026249944,-500.0,0.00027397,30]
[340889716,1730026249954,-500.0,0.00027397,30]
[340889717,1730026249966,-500.0,0.00027397,30]
[340889718,1730026249975,-519.54388139,0.00027397,30]
[340889719,1730026249986,-500.0,0.00027397,30]
[340889720,1730026249996,-2079.68,0.00027397,30]
[340889721,1730026250006,-500.0,0.00027397,30]
[340889722,1730026250015,-500.0,0.00027397,30]
[340889723,1730026250024,-742.14,0.00027397,30]
[340889724,1730026250033,-500.0,0.00027397,30]
[340889725,1730026250042,-500.0,0.00027397,30]
[340889726,1730026250051,-721.8,0.00027397,30]
[340889727,1730026250061,-500.0,0.00027397,30]
[340889728,1730026250070,-500.0,0.00027397,30]
[340889729,1730026250079,-500.0,0.00027397,7]
[340889730,1730026250089,-505.61760529,0.00027397,30]
[340889731,1730026250098,-500.0,0.00027397,30]
[340889732,1730026250107,-500.0,0.00027397,30]
[340889733,1730026250117,-500.0,0.00027397,30]
[340889734,1730026250126,-980.38,0.00027397,30]
[340889735,1730026250135,-500.0,0.00027397,30]
[340889736,1730026250144,-921.29,0.00027397,30]
[340889737,1730026250153,-500.0,0.00027397,30]
[340889738,1730026250165,-500.0,0.00027397,30]
[340889739,1730026250174,-500.0,0.00027397,30]
[340889740,1730026250183,-1202.28,0.00027397,30]
[340889741,1730026250193,-500.0,0.00027397,30]
[340889742,1730026250202,-540.74487227,0.00027397,30]
[340889743,1730026250211,-500.0,0.00027397,30]
[340889744,1730026250224,-500.0,0.00027397,30]
[340889745,1730026250234,-510.02,0.00027397,30]
[340889746,1730026250243,-1727.5,0.00027397,30]
[340889747,1730026250252,-500.0,0.00027397,30]
[340889748,1730026250260,-500.0,0.00027397,30]
[340889749,1730026250270,-500.0,0.00027397,30]
[340889750,1730026250280,-500.0,0.00027397,30]
[340889751,1730026250289,-819.86,0.00027397,30]
[340889752,1730026250302,-634.5,0.00027397,30]
[340889753,1730026250314,-500.0,0.00027397,30]
[340889754,1730026250324,-506.64491433,0.00027397,30]
[340889755,1730026250333,-500.0,0.00027397,30]
[340889756,1730026250348,-510.75530725,0.00027397,30]
[340889757,1730026250358,-1189.85,0.00027397,30]
[340889758,1730026250369,-1553.66,0.00027397,30]
[340889759,1730026250379,-500.0,0.00027397,7]
[340889760,1730026250390,-500.0,0.00027397,30]
[340889761,1730026250400,-500.0,0.00027397,30]
[340889762,1730026250410,-500.0,0.00027397,30]
[340889763,1730026250421,-500.0,0.00027397,30]
[340889764,1730026250432,-1395.51,0.00027397,30]
[340889765,1730026250442,-500.0,0.00027397,30]
[340889766,1730026250456,-500.0,0.00027397,30]
[340889767,1730026250472,-525.93216055,0.00027397,30]
[340889768,1730026250482,-500.0,0.00027397,30]
[340889769,1730026250491,-500.0,0.00027397,30]
[340889770,1730026250505,-500.0,0.00027397,30]
[340889771,1730026250516,-534.69169563,0.00027397,30]
[340889772,1730026250527,-500.0,0.00027397,30]
[340889773,1730026250536,-515.48009068,0.00027397,30]
[340889774,1730026250545,-572.35,0.00027397,30]
[340889775,1730026250554,-500.0,0.00027397,30]
[340889776,1730026250563,-500.0,0.00027397,30]
[340889777,1730026250573,-500.0,0.00027397,30]
[340889778,1730026250584,-500.0,0.00027397,30]
[340889779,1730026250594,-500.0,0.00027397,30]
[340889780,1730026250605,-500.0,0.00027397,30]
[340889781,1730026250617,-500.0,0.00027397,30]
[340889782,1730026250627,-500.0,0.00027397,30]
[340889783,1730026250638,-500.0,0.00027397,30]
[340889784,1730026250649,-500.0,0.00027397,30]
[340889785,1730026250660,-1147.55,0.00027397,30]
[340889786,1730026250672,-500.0,0.00027397,30]
[340889787,1730026250681,-824.82,0.00027397,30]
[340889788,1730026250691,-500.0,0.00027397,30]
[340889789,1730026250700,-500.0,0.00027397,30]
[340889790,1730026250711,-500.0,0.00027397,30]
[340889791,1730026250727,-500.0,0.00027397,30]
[340889792,1730026250736,-500.0,0.00027397,30]
[340889793,1730026250745,-500.0,0.00027397,30]
[340889794,1730026250755,-1384.68,0.00027397,30]
[340889795,1730026250766,-500.0,0.00027397,30]
[340889796,1730026250778,-500.0,0.00027397,30]
[340889797,1730026250790,-500.0,0.00027397,30]
[340889798,1730026250799,-500.0,0.00027397,30]
[340889799,1730026250810,-500.0,0.00027397,30]
[340889800,1730026250819,-1800.5,0.00027397,30]
[340889801,1730026250829,-500.0,0.00027397,30]
[340889802,1730026250838,-500.0,0.00027397,30]
[340889803,1730026250848,-580.6415613,0.00027397,30]
[340889804,1730026250858,-537.92109626,0.00027397,30]
[340889805,1730026250870,-500.0,0.00027397,30]
[340889806,1730026250880,-1922.76,0.00027397,30]
[340889807,1730026250890,-500.0,0.00027397,30]
[340889808,1730026250899,-34678.47,0.00027397,30]
[340889809,1730026250910,-585.78,0.00027397,30]
[340889810,1730026250919,-376.82231197,0.00027397,30]
[340889811,1730026250928,-500.0,0.00027397,30]
[340889812,1730026250937,-500.0,0.00027397,30]
[340889813,1730026250947,-500.0,0.00027397,30]
[340889814,1730026250956,-500.0,0.00027397,2]
[340889815,1730026250966,-7628.43,0.00027397,21]
[340889816,1730026250975,-500.0,0.00027397,30]
[340889817,1730026250985,-500.0,0.00027397,30]
[340889818,1730026250994,-502.97072936,0.00027397,30]
[340889819,1730026251005,-1532.01,0.00027397,30]
[340889820,1730026251017,-500.0,0.00027397,30]
[340889821,1730026251026,-500.0,0.00027397,30]
[340889822,1730026251038,-774.93,0.00027397,30]
[340889823,1730026251049,-500.0,0.00027397,30]
[340889824,1730026251060,-519.9575603,0.00027397,30]
[340889825,1730026251073,-500.0,0.00027397,30]
[340889826,1730026251082,-500.0,0.00027397,30]
[340889827,1730026251091,-500.0,0.00027397,30]
[340889828,1730026251101,-500.0,0.00027397,30]
[340889829,1730026251111,-500.0,0.00027397,30]
[340889830,1730026251120,-506.47792048,0.00027397,30]
[340889831,1730026251131,-500.0,0.00027397,30]
[340889832,1730026251141,-500.0,0.00027397,30]
[340889833,1730026251151,-2946.04,0.00027397,30]
[340889834,1730026251165,-500.0,0.00027397,30]
[340889835,1730026251175,-500.0,0.00027397,30]
[340889836,1730026251185,-289.23,0.00027397,7]
[340889837,1730026251195,-500.0,0.00027397,30]
[340889838,1730026251204,-500.0,0.00027397,30]
[340889839,1730026251214,-500.0,0.00027397,30]
[340889840,1730026251225,-500.0,0.00027397,30]
[340889841,1730026251236,-500.0,0.00027397,30]
[340889842,1730026251247,-4526.57,0.00027397,30]
[340889843,1730026251257,-809.02,0.00027397,30]
[340889844,1730026251267,-954.33,0.00027397,30]
[340889845,1730026251277,-500.0,0.00027397,30]
[340889846,1730026251288,-500.0,0.00027397,30]
[340889847,1730026251301,-500.0,0.00027397,30]
[340889848,1730026251311,-500.0,0.00027397,30]
[340889849,1730026251320,-1951.74,0.00027397,30]
[340889850,1730026251330,-505.33928652,0.00027397,30]
[340889851,1730026251339,-500.0,0.00027397,30]
[340889852,1730026251349,-500.0,0.00027397,30]
[340889853,1730026251359,-500.0,0.00027397,30]
[340889854,1730026251368,-10225.82,0.00027397,30]
[340889855,1730026251377,-500.0,0.00027397,30]
[340889856,1730026251387,-500.0,0.00027397,30]
[340889857,1730026251397,-862.93,0.00027397,30]
[340889858,1730026251407,-500.0,0.00027397,30]
[340889859,1730026251416,-500.0,0.00027397,30]
[340889860,1730026251425,-1026.240956,0.00027397,7]
[340889861,1730026251434,-2041.93,0.00027397,30]
[340889862,1730026251444,-500.0,0.00027397,30]
[340889863,1730026251453,-500.0,0.00027397,30]
[340889864,1730026251463,-1468.42,0.00027397,30]
[340889865,1730026251473,-744.54,0.00027397,30]
[340889866,1730026251482,-552.34950237,0.00027397,30]
[340889867,1730026251492,-504.47932714,0.00027397,30]
[340889868,1730026251502,-500.0,0.00027397,30]
[340889869,1730026251511,-1026.24095,0.00027397,7]
[340889870,1730026251521,-500.0,0.00027397,30]
[340889871,1730026251530,-500.0,0.00027397,30]
[340889872,1730026251540,-500.0,0.00027397,30]
[340889873,1730026251550,-500.0,0.00027397,30]
[340889874,1730026251560,-615.6344586,0.00027397,30]
[340889875,1730026251571,-500.0,0.00027397,30]
[340889876,1730026251582,-500.0,0.00027397,30]
[340889877,1730026251594,-500.0,0.00027397,30]
[340889878,1730026251604,-500.0,0.00027397,30]
[340889879,1730026251614,-500.0,0.00027397,30]
[340889880,1730026251623,-500.0,0.00027397,30]
[340889881,1730026251633,-500.0,0.00027397,30]
[340889882,1730026251642,-500.0,0.00027397,30]
[340889883,1730026251653,-500.0,0.00027397,30]
[340889884,1730026251664,-500.0,0.00027397,30]
[340889885,1730026251675,-1483.37,0.00027397,30]
[340889886,1730026251684,-500.0,0.00027397,30]
[340889887,1730026251694,-1238.85,0.00027397,30]
[340889888,1730026251703,-527.08532567,0.00027397,30]
[340889889,1730026251713,-500.0,0.00027397,30]
[340889890,1730026251724,-661.24,0.00027397,30]
[340889891,1730026251735,-7555.62,0.00027397,30]
[340889892,1730026251745,-500.0,0.00027397,30]
[340889893,1730026251757,-1775.34,0.00027397,30]
[340889894,1730026251768,-500.0,0.00027397,30]
[340889895,1730026251777,-509.32699621,0.00027397,30]
[340889896,1730026251787,-1308.96,0.00027397,30]
[340889897,1730026251798,-507.53895207,0.00027397,30]
[340889898,1730026251808,-500.0,0.00027397,30]
[340889899,1730026251817,-500.0,0.00027397,30]
[340889900,1730026251827,-509.19698183,0.00027397,30]
[340889901,1730026251836,-500.0,0.00027397,30]
[340889902,1730026251846,-500.0,0.00027397,30]
[340889903,1730026251856,-500.0,0.00027397,30]
[340889904,1730026251866,-2676.64,0.00027397,30]
[340889905,1730026251876,-1318.55,0.00027397,30]
[340889906,1730026251886,-500.0,0.00027397,30]
[340889907,1730026251895,-769.72,0.00027397,30]
[340889908,1730026251904,-769.72,0.00027397,30]
[340889909,1730026251914,-769.72,0.00027397,30]
[340889910,1730026251924,-769.72,0.00027397,30]
[340889911,1730026251934,-769.72,0.00027397,30]
[340889912,1730026251943,-500.0,0.00027397,30]
[340889913,1730026251953,-769.72,0.00027397,30]
[340889914,1730026251962,-769.72,0.00027397,30]
[340889915,1730026251972,-769.72,0.00027397,30]
[340889916,1730026251982,-769.72,0.00027397,30]
[340889917,1730026251991,-769.72,0.00027397,30]
[340889918,1730026252001,-769.72,0.00027397,30]
[340889919,1730026252010,-769.72,0.00027397,30]
[340889920,1730026252019,-769.72,0.00027397,30]
[340889921,1730026252028,-769.72,0.00027397,30]
[340889922,1730026252037,-769.72,0.00027397,30]
[340889923,1730026252046,-500.0,0.00027397,30]
[340889924,1730026252057,-769.72,0.00027397,30]
[340889925,1730026252067,-769.72,0.00027397,30]
[340889926,1730026252078,-3472.82,0.00027397,30]
[340889927,1730026252089,-769.72,0.00027397,30]
[340889928,1730026252099,-769.72,0.00027397,30]
[340889929,1730026252111,-769.72,0.00027397,30]
[340889930,1730026252121,-996.19,0.00027397,30]
[340889931,1730026252131,-769.72,0.00027397,30]
[340889932,1730026252142,-769.72,0.00027397,30]
[340889933,1730026252153,-769.72,0.00027397,30]
[340889934,1730026252163,-769.8733787,0.00027397,30]
[340889935,1730026252174,-500.0,0.00027397,30]
[340889936,1730026252184,-519.74545837,0.00027397,30]
[340889937,1730026252194,-500.0,0.00027397,30]
[340889938,1730026252204,-306.73118173,0.00027397,30]
[340889939,1730026252213,-500.0,0.00027397,30]